Workbook

Sheet Game Hub
C1: s
C2: 1 | D2: =C2+1 -> 2 | E2: =D2+1 -> 3 | F2: 4 | G2: 5 | H2: 6 | I2: 7 | J2: 8 | K2: 9 | L2: 10 | M2: 11 | N2: 12 | O2: 13 | P2: 14 | Q2: 15 | R2: 16 | S2: 17 | T2: 18 | U2: 19 | V2: 20 | W2: 21 | X2: 22 | Y2: 23 | Z2: 24 | AA2: 25 | AB2: 26 | AC2: 27 | AD2: 28 | AE2: 29 | AF2: 30 | AG2: =AF2+1 -> 31 | AH2: 32 | AI2: 33 | AJ2: 34 | AK2: 35 | AL2: 36 | AM2: 37 | AN2: 38 | AO2: 39 | AP2: 40 | AQ2: 41 | AR2: 42 | AS2: 43 | AT2: 44 | AU2: 45 | AV2: 46 | AW2: 47 | AX2: 48 | AY2: 49 | AZ2: 50 | BA2: 51 | BB2: 52 | BC2: 53 | BD2: 54 | BE2: 55 | BF2: 56 | BG2: 57 | BH2: 58 | BI2: 59 | BJ2: 60 | BK2: 61 | BL2: 62 | BM2: 63 | BN2: 64 | BO2: 65 | BP2: 66 | BQ2: =BP2+1 -> 67 | BR2: 68 | BS2: 69 | BT2: 70 | BU2: 71 | BV2: 72 | BW2: 73 | BX2: 74 | BY2: 75 | BZ2: 76 | CA2: 77 | CB2: 78 | CC2: 79 | CD2: 80 | CE2: 81 | CF2: 82 | CG2: 83 | CH2: 84 | CI2: 85 | CJ2: 86 | CK2: 87 | CL2: 88 | CM2: 89 | CN2: 90 | CO2: 91 | CP2: 92 | CQ2: 93 | CR2: 94 | CS2: 95 | CT2: 96 | CU2: 97 | CV2: 98 | CW2: 99 | CX2: 100 | CY2: 101 | CZ2: 102 | DA2: 103 | DB2: 104 | DC2: 105 | DD2: 106 | DE2: 107 | DF2: 108 | DG2: 109 | DH2: 110 | DI2: 111 | DJ2: 112 | DK2: 113 | DL2: 114 | DM2: 115 | DN2: 116 | DO2: 117 | DP2: 118 | DQ2: 119 | DR2: 120 | DS2: 121 | DT2: 122 | DU2: 123 | DV2: 124 | DW2: 125 | DX2: 126 | DY2: 127 | DZ2: 128 | EA2: 129 | EB2: 130 | EC2: =EB2+1 -> 131 | ED2: 132 | EE2: 133 | EF2: 134 | EG2: 135 | EH2: 136 | EI2: 137 | EJ2: 138 | EK2: 139 | EL2: 140 | EM2: 141 | EN2: 142 | EO2: 143 | EP2: 144 | EQ2: 145 | ER2: 146 | ES2: 147 | ET2: 148 | EU2: 149 | EV2: 150 | EW2: 151 | EX2: 152 | EY2: 153 | EZ2: 154 | FA2: 155 | FB2: 156 | FC2: 157 | FD2: 158 | FE2: 159 | FF2: 160 | FG2: 161 | FH2: 162 | FI2: 163 | FJ2: 164 | FK2: 165 | FL2: 166 | FM2: 167 | FN2: 168 | FO2: 169 | FP2: 170 | FQ2: 171 | FR2: 172 | FS2: 173 | FT2: 174 | FU2: 175 | FV2: 176 | FW2: 177 | FX2: 178 | FY2: 179 | FZ2: 180 | GA2: 181 | GB2: 182 | GC2: 183 | GD2: 184 | GE2: 185 | GF2: 186 | GG2: 187 | GH2: 188 | GI2: 189 | GJ2: 190 | GK2: 191 | GL2: 192 | GM2: 193 | GN2: 194 | GO2: =GN2+1 -> 195 | GP2: 196 | GQ2: 197 | GR2: 198 | GS2: 199 | GT2: 200 | GU2: 201 | GV2: 202 | GW2: 203 | GX2: 204 | GY2: 205 | GZ2: 206 | HA2: 207 | HB2: 208 | HC2: 209 | HD2: 210 | HE2: 211 | HF2: 212 | HG2: 213 | HH2: 214 | HI2: 215 | HJ2: 216 | HK2: 217 | HL2: 218 | HM2: 219 | HN2: 220 | HO2: 221 | HP2: 222 | HQ2: 223
B3: 1 | HS3: Enemies | HT3: Y/N | HU3: Left Tile | HV3: Right Tile
B4: 2 | HS4: 1 | HT4: Y | HU4: W13 | HV4: AD13
B5: 3 | HS5: 2 | HT5: Y | HU5: AQ13 | HV5: AV13
B6: 4 | HS6: 3 | HT6: Y | HU6: AY13 | HV6: BH13
B7: 5 | HS7: 4 | HT7: Y | HU7: BV13 | HV7: CJ13
B8: 6 | HS8: 5 | HT8: Y | HU8: CE7 | HV8: CL7
B9: 7 | HS9: 6 | HT9: Y | HU9: CN13 | HV9: CZ13
B10: 8 | HS10: 7 | HT10: Y | HU10: DJ13 | HV10: DQ13
B11: 9 | HS11: 8 | HT11: Y | HU11: DT13 | HV11: EE13
B12: 10 | HS12: 9 | HT12: Y | HU12: FK13 | HV12: FX13
B13: 11 | HS13: 10 | HT13: N
B14: 12
B15: 13
D17: Level Select | S17: Information
D18: 1 | S18: Controls, Game Over and Victory | Y18: Object Key | AE18: Customise Player Sprites | AK18: Customise Levels | AR18: More Content
A19: 1 | S19: W | U19: Jump four cells up | Y19: Impassable | AB19: Background | AE19: 1. Go to Character Sprites Tab | AK19: 1. Go to Game Levels Tab | AR19: Youtube : Link
A20: 2 | S20: A | U20: Move one cell left | Z20: Floor Tile | AC20: Sky | AE20: 2. Click on Player/Enemy in row 5 | AK20: 2. Create custom level in cells I33-GP45
A21: 3 | S21: D | U21: Move one cell right | Z21: Pipe | AC21: Cloud | AE21: 3. Click 'Shape Format' Ribbon | AK21: 3. Fill in enemy logic HT33-HV43 | AR21: Blog : Link
S22: Gravity | U22: Auto. Downwards | Z22: Point Block | AC22: Grass | AE22: 4. Click 'Shape Fill' option | AK22: HT is a yes or no flag for enemy spawn
S23: Game Over | U23: Hit Enemy or fall out | Z23: Non Point Block | AE23: 5. Click 'Picture' option | AK23: HU is the left most cell that enemy appears (atleast one needs to be populated)
S24: Victory | U24: Reach end of level | Z24: Stairs | AC24: Grass | AE24: 6. Choose Picture from your files | AK24: HV is right most cell (must be on same row as HU cell) (atleast one needs to be populated)

Sheet Character Sprites
D2: Player Character | F2: Enemy Character

Sheet Game Levels
C2: 1 | D2: =C2+1 -> 2 | E2: =D2+1 -> 3 | F2: 4 | G2: 5 | H2: 6 | I2: 7 | J2: 8 | K2: 9 | L2: 10 | M2: 11 | N2: 12 | O2: 13 | P2: 14 | Q2: 15 | R2: 16 | S2: 17 | T2: 18 | U2: 19 | V2: 20 | W2: 21 | X2: 22 | Y2: 23 | Z2: 24 | AA2: 25 | AB2: 26 | AC2: 27 | AD2: 28 | AE2: 29 | AF2: 30 | AG2: =AF2+1 -> 31 | AH2: 32 | AI2: 33 | AJ2: 34 | AK2: 35 | AL2: 36 | AM2: 37 | AN2: 38 | AO2: 39 | AP2: 40 | AQ2: 41 | AR2: 42 | AS2: 43 | AT2: 44 | AU2: 45 | AV2: 46 | AW2: 47 | AX2: 48 | AY2: 49 | AZ2: 50 | BA2: 51 | BB2: 52 | BC2: 53 | BD2: 54 | BE2: 55 | BF2: 56 | BG2: 57 | BH2: 58 | BI2: 59 | BJ2: 60 | BK2: 61 | BL2: 62 | BM2: 63 | BN2: 64 | BO2: 65 | BP2: 66 | BQ2: =BP2+1 -> 67 | BR2: 68 | BS2: 69 | BT2: 70 | BU2: 71 | BV2: 72 | BW2: 73 | BX2: 74 | BY2: 75 | BZ2: 76 | CA2: 77 | CB2: 78 | CC2: 79 | CD2: 80 | CE2: 81 | CF2: 82 | CG2: 83 | CH2: 84 | CI2: 85 | CJ2: 86 | CK2: 87 | CL2: 88 | CM2: 89 | CN2: 90 | CO2: 91 | CP2: 92 | CQ2: 93 | CR2: 94 | CS2: 95 | CT2: 96 | CU2: 97 | CV2: 98 | CW2: 99 | CX2: 100 | CY2: 101 | CZ2: 102 | DA2: 103 | DB2: 104 | DC2: 105 | DD2: 106 | DE2: 107 | DF2: 108 | DG2: 109 | DH2: 110 | DI2: 111 | DJ2: 112 | DK2: 113 | DL2: 114 | DM2: 115 | DN2: 116 | DO2: 117 | DP2: 118 | DQ2: 119 | DR2: 120 | DS2: 121 | DT2: 122 | DU2: 123 | DV2: 124 | DW2: 125 | DX2: 126 | DY2: 127 | DZ2: 128 | EA2: 129 | EB2: 130 | EC2: =EB2+1 -> 131 | ED2: 132 | EE2: 133 | EF2: 134 | EG2: 135 | EH2: 136 | EI2: 137 | EJ2: 138 | EK2: 139 | EL2: 140 | EM2: 141 | EN2: 142 | EO2: 143 | EP2: 144 | EQ2: 145 | ER2: 146 | ES2: 147 | ET2: 148 | EU2: 149 | EV2: 150 | EW2: 151 | EX2: 152 | EY2: 153 | EZ2: 154 | FA2: 155 | FB2: 156 | FC2: 157 | FD2: 158 | FE2: 159 | FF2: 160 | FG2: 161 | FH2: 162 | FI2: 163 | FJ2: 164 | FK2: 165 | FL2: 166 | FM2: 167 | FN2: 168 | FO2: 169 | FP2: 170 | FQ2: 171 | FR2: 172 | FS2: 173 | FT2: 174 | FU2: 175 | FV2: 176 | FW2: 177 | FX2: 178 | FY2: 179 | FZ2: 180 | GA2: 181 | GB2: 182 | GC2: 183 | GD2: 184 | GE2: 185 | GF2: 186 | GG2: 187 | GH2: 188 | GI2: 189 | GJ2: 190 | GK2: 191 | GL2: 192 | GM2: 193 | GN2: 194 | GO2: =GN2+1 -> 195 | GP2: 196 | GQ2: 197 | GR2: 198 | GS2: 199 | GT2: 200 | GU2: 201 | GV2: 202 | GW2: 203 | GX2: 204 | GY2: 205 | GZ2: 206 | HA2: 207 | HB2: 208 | HC2: 209 | HD2: 210 | HE2: 211 | HF2: 212 | HG2: 213 | HH2: 214 | HI2: 215 | HJ2: 216 | HK2: 217 | HL2: 218 | HM2: 219 | HN2: 220 | HO2: 221 | HP2: 222 | HQ2: 223
B3: 1 | HS3: Enemies | HT3: Y/N | HU3: Left Tile | HV3: Right Tile
B4: 2 | HS4: 1 | HT4: Y | HU4: W13 | HV4: AD13
B5: 3 | HS5: 2 | HT5: Y | HU5: AQ13 | HV5: AV13
B6: 4 | HS6: 3 | HT6: Y | HU6: AY13 | HV6: BH13
B7: 5 | HS7: 4 | HT7: Y | HU7: BV13 | HV7: CJ13
B8: 6 | HS8: 5 | HT8: Y | HU8: CE7 | HV8: CL7
B9: 7 | HS9: 6 | HT9: Y | HU9: CN13 | HV9: CZ13
B10: 8 | HS10: 7 | HT10: Y | HU10: DJ13 | HV10: DQ13
B11: 9 | HS11: 8 | HT11: Y | HU11: DT13 | HV11: EE13
B12: 10 | HS12: 9 | HT12: Y | HU12: FK13 | HV12: FX13
B13: 11 | HS13: 10 | HT13: N
B14: 12
B15: 13
C17: 1 | D17: =C17+1 -> 2 | E17: =D17+1 -> 3 | F17: 4 | G17: 5 | H17: 6 | I17: 7 | J17: 8 | K17: 9 | L17: 10 | M17: 11 | N17: 12 | O17: 13 | P17: 14 | Q17: 15 | R17: 16 | S17: 17 | T17: 18 | U17: 19 | V17: 20 | W17: 21 | X17: 22 | Y17: 23 | Z17: 24 | AA17: 25 | AB17: 26 | AC17: 27 | AD17: 28 | AE17: 29 | AF17: 30 | AG17: =AF17+1 -> 31 | AH17: 32 | AI17: 33 | AJ17: 34 | AK17: 35 | AL17: 36 | AM17: 37 | AN17: 38 | AO17: 39 | AP17: 40 | AQ17: 41 | AR17: 42 | AS17: 43 | AT17: 44 | AU17: 45 | AV17: 46 | AW17: 47 | AX17: 48 | AY17: 49 | AZ17: 50 | BA17: 51 | BB17: 52 | BC17: 53 | BD17: 54 | BE17: 55 | BF17: 56 | BG17: 57 | BH17: 58 | BI17: 59 | BJ17: 60 | BK17: 61 | BL17: 62 | BM17: 63 | BN17: 64 | BO17: 65 | BP17: 66 | BQ17: =BP17+1 -> 67 | BR17: 68 | BS17: 69 | BT17: 70 | BU17: 71 | BV17: 72 | BW17: 73 | BX17: 74 | BY17: 75 | BZ17: 76 | CA17: 77 | CB17: 78 | CC17: 79 | CD17: 80 | CE17: 81 | CF17: 82 | CG17: 83 | CH17: 84 | CI17: 85 | CJ17: 86 | CK17: 87 | CL17: 88 | CM17: 89 | CN17: 90 | CO17: 91 | CP17: 92 | CQ17: 93 | CR17: 94 | CS17: 95 | CT17: 96 | CU17: 97 | CV17: 98 | CW17: 99 | CX17: 100 | CY17: 101 | CZ17: 102 | DA17: 103 | DB17: 104 | DC17: 105 | DD17: 106 | DE17: 107 | DF17: 108 | DG17: 109 | DH17: 110 | DI17: 111 | DJ17: 112 | DK17: 113 | DL17: 114 | DM17: 115 | DN17: 116 | DO17: 117 | DP17: 118 | DQ17: 119 | DR17: 120 | DS17: 121 | DT17: 122 | DU17: 123 | DV17: 124 | DW17: 125 | DX17: 126 | DY17: 127 | DZ17: 128 | EA17: 129 | EB17: 130 | EC17: =EB17+1 -> 131 | ED17: 132 | EE17: 133 | EF17: 134 | EG17: 135 | EH17: 136 | EI17: 137 | EJ17: 138 | EK17: 139 | EL17: 140 | EM17: 141 | EN17: 142 | EO17: 143 | EP17: 144 | EQ17: 145 | ER17: 146 | ES17: 147 | ET17: 148 | EU17: 149 | EV17: 150 | EW17: 151 | EX17: 152 | EY17: 153 | EZ17: 154 | FA17: 155 | FB17: 156 | FC17: 157 | FD17: 158 | FE17: 159 | FF17: 160 | FG17: 161 | FH17: 162 | FI17: 163 | FJ17: 164 | FK17: 165 | FL17: 166 | FM17: 167 | FN17: 168 | FO17: 169 | FP17: 170 | FQ17: 171 | FR17: 172 | FS17: 173 | FT17: 174 | FU17: 175 | FV17: 176 | FW17: 177 | FX17: 178 | FY17: 179 | FZ17: 180 | GA17: 181 | GB17: 182 | GC17: 183 | GD17: 184 | GE17: 185 | GF17: 186 | GG17: 187 | GH17: 188 | GI17: 189 | GJ17: 190 | GK17: 191 | GL17: 192 | GM17: 193 | GN17: 194 | GO17: =GN17+1 -> 195 | GP17: 196 | GQ17: 197 | GR17: 198 | GS17: 199 | GT17: 200 | GU17: 201 | GV17: 202 | GW17: 203 | GX17: 204 | GY17: 205 | GZ17: 206 | HA17: 207 | HB17: 208 | HC17: 209 | HD17: 210 | HE17: 211 | HF17: 212 | HG17: 213 | HH17: 214 | HI17: 215 | HJ17: 216 | HK17: 217 | HL17: 218 | HM17: 219 | HN17: 220 | HO17: 221 | HP17: 222 | HQ17: 223
B18: 1 | HS18: Enemies | HT18: Y/N | HU18: Left Tile | HV18: Right Tile
B19: 2 | HS19: 1 | HT19: N | HU19: W13 | HV19: AD13
B20: 3 | HS20: 2 | HT20: N
B21: 4 | HS21: 3 | HT21: N
B22: 5 | HS22: 4 | HT22: N
B23: 6 | HS23: 5 | HT23: N
B24: 7 | HS24: 6 | HT24: N
B25: 8 | HS25: 7 | HT25: N
B26: 9 | HS26: 8 | HT26: N
B27: 10 | HS27: 9 | HT27: N
B28: 11 | HS28: 10 | HT28: N
B29: 12
B30: 13
C32: 1 | D32: =C32+1 -> 2 | E32: =D32+1 -> 3 | F32: =E32+1 -> 4 | G32: =F32+1 -> 5 | H32: =G32+1 -> 6 | I32: =H32+1 -> 7 | J32: =I32+1 -> 8 | K32: =J32+1 -> 9 | L32: =K32+1 -> 10 | M32: =L32+1 -> 11 | N32: =M32+1 -> 12 | O32: =N32+1 -> 13 | P32: =O32+1 -> 14 | Q32: =P32+1 -> 15 | R32: =Q32+1 -> 16 | S32: =R32+1 -> 17 | T32: =S32+1 -> 18 | U32: =T32+1 -> 19 | V32: =U32+1 -> 20 | W32: =V32+1 -> 21 | X32: =W32+1 -> 22 | Y32: =X32+1 -> 23 | Z32: =Y32+1 -> 24 | AA32: =Z32+1 -> 25 | AB32: =AA32+1 -> 26 | AC32: =AB32+1 -> 27 | AD32: =AC32+1 -> 28 | AE32: =AD32+1 -> 29 | AF32: =AE32+1 -> 30 | AG32: =AF32+1 -> 31 | AH32: =AG32+1 -> 32 | AI32: =AH32+1 -> 33 | AJ32: =AI32+1 -> 34 | AK32: =AJ32+1 -> 35 | AL32: =AK32+1 -> 36 | AM32: =AL32+1 -> 37 | AN32: =AM32+1 -> 38 | AO32: =AN32+1 -> 39 | AP32: =AO32+1 -> 40 | AQ32: =AP32+1 -> 41 | AR32: =AQ32+1 -> 42 | AS32: =AR32+1 -> 43 | AT32: =AS32+1 -> 44 | AU32: =AT32+1 -> 45 | AV32: =AU32+1 -> 46 | AW32: =AV32+1 -> 47 | AX32: =AW32+1 -> 48 | AY32: =AX32+1 -> 49 | AZ32: =AY32+1 -> 50 | BA32: =AZ32+1 -> 51 | BB32: =BA32+1 -> 52 | BC32: =BB32+1 -> 53 | BD32: =BC32+1 -> 54 | BE32: =BD32+1 -> 55 | BF32: =BE32+1 -> 56 | BG32: =BF32+1 -> 57 | BH32: =BG32+1 -> 58 | BI32: =BH32+1 -> 59 | BJ32: =BI32+1 -> 60 | BK32: =BJ32+1 -> 61 | BL32: =BK32+1 -> 62 | BM32: =BL32+1 -> 63 | BN32: =BM32+1 -> 64 | BO32: =BN32+1 -> 65 | BP32: =BO32+1 -> 66 | BQ32: =BP32+1 -> 67 | BR32: =BQ32+1 -> 68 | BS32: =BR32+1 -> 69 | BT32: =BS32+1 -> 70 | BU32: =BT32+1 -> 71 | BV32: =BU32+1 -> 72 | BW32: =BV32+1 -> 73 | BX32: =BW32+1 -> 74 | BY32: =BX32+1 -> 75 | BZ32: =BY32+1 -> 76 | CA32: =BZ32+1 -> 77 | CB32: =CA32+1 -> 78 | CC32: =CB32+1 -> 79 | CD32: =CC32+1 -> 80 | CE32: =CD32+1 -> 81 | CF32: =CE32+1 -> 82 | CG32: =CF32+1 -> 83 | CH32: =CG32+1 -> 84 | CI32: =CH32+1 -> 85 | CJ32: =CI32+1 -> 86 | CK32: =CJ32+1 -> 87 | CL32: =CK32+1 -> 88 | CM32: =CL32+1 -> 89 | CN32: =CM32+1 -> 90 | CO32: =CN32+1 -> 91 | CP32: =CO32+1 -> 92 | CQ32: =CP32+1 -> 93 | CR32: =CQ32+1 -> 94 | CS32: =CR32+1 -> 95 | CT32: =CS32+1 -> 96 | CU32: =CT32+1 -> 97 | CV32: =CU32+1 -> 98 | CW32: =CV32+1 -> 99 | CX32: =CW32+1 -> 100 | CY32: =CX32+1 -> 101 | CZ32: =CY32+1 -> 102 | DA32: =CZ32+1 -> 103 | DB32: =DA32+1 -> 104 | DC32: =DB32+1 -> 105 | DD32: =DC32+1 -> 106 | DE32: =DD32+1 -> 107 | DF32: =DE32+1 -> 108 | DG32: =DF32+1 -> 109 | DH32: =DG32+1 -> 110 | DI32: =DH32+1 -> 111 | DJ32: =DI32+1 -> 112 | DK32: =DJ32+1 -> 113 | DL32: =DK32+1 -> 114 | DM32: =DL32+1 -> 115 | DN32: =DM32+1 -> 116 | DO32: =DN32+1 -> 117 | DP32: =DO32+1 -> 118 | DQ32: =DP32+1 -> 119 | DR32: =DQ32+1 -> 120 | DS32: =DR32+1 -> 121 | DT32: =DS32+1 -> 122 | DU32: =DT32+1 -> 123 | DV32: =DU32+1 -> 124 | DW32: =DV32+1 -> 125 | DX32: =DW32+1 -> 126 | DY32: =DX32+1 -> 127 | DZ32: =DY32+1 -> 128 | EA32: =DZ32+1 -> 129 | EB32: =EA32+1 -> 130 | EC32: =EB32+1 -> 131 | ED32: =EC32+1 -> 132 | EE32: =ED32+1 -> 133 | EF32: =EE32+1 -> 134 | EG32: =EF32+1 -> 135 | EH32: =EG32+1 -> 136 | EI32: =EH32+1 -> 137 | EJ32: =EI32+1 -> 138 | EK32: =EJ32+1 -> 139 | EL32: =EK32+1 -> 140 | EM32: =EL32+1 -> 141 | EN32: =EM32+1 -> 142 | EO32: =EN32+1 -> 143 | EP32: =EO32+1 -> 144 | EQ32: =EP32+1 -> 145 | ER32: =EQ32+1 -> 146 | ES32: =ER32+1 -> 147 | ET32: =ES32+1 -> 148 | EU32: =ET32+1 -> 149 | EV32: =EU32+1 -> 150 | EW32: =EV32+1 -> 151 | EX32: =EW32+1 -> 152 | EY32: =EX32+1 -> 153 | EZ32: =EY32+1 -> 154 | FA32: =EZ32+1 -> 155 | FB32: =FA32+1 -> 156 | FC32: =FB32+1 -> 157 | FD32: =FC32+1 -> 158 | FE32: =FD32+1 -> 159 | FF32: =FE32+1 -> 160 | FG32: =FF32+1 -> 161 | FH32: =FG32+1 -> 162 | FI32: =FH32+1 -> 163 | FJ32: =FI32+1 -> 164 | FK32: =FJ32+1 -> 165 | FL32: =FK32+1 -> 166 | FM32: =FL32+1 -> 167 | FN32: =FM32+1 -> 168 | FO32: =FN32+1 -> 169 | FP32: =FO32+1 -> 170 | FQ32: =FP32+1 -> 171 | FR32: =FQ32+1 -> 172 | FS32: =FR32+1 -> 173 | FT32: =FS32+1 -> 174 | FU32: =FT32+1 -> 175 | FV32: =FU32+1 -> 176 | FW32: =FV32+1 -> 177 | FX32: =FW32+1 -> 178 | FY32: =FX32+1 -> 179 | FZ32: =FY32+1 -> 180 | GA32: =FZ32+1 -> 181 | GB32: =GA32+1 -> 182 | GC32: =GB32+1 -> 183 | GD32: =GC32+1 -> 184 | GE32: =GD32+1 -> 185 | GF32: =GE32+1 -> 186 | GG32: =GF32+1 -> 187 | GH32: =GG32+1 -> 188 | GI32: =GH32+1 -> 189 | GJ32: =GI32+1 -> 190 | GK32: =GJ32+1 -> 191 | GL32: =GK32+1 -> 192 | GM32: =GL32+1 -> 193 | GN32: =GM32+1 -> 194 | GO32: =GN32+1 -> 195 | GP32: =GO32+1 -> 196 | GQ32: =GP32+1 -> 197 | GR32: =GQ32+1 -> 198 | GS32: =GR32+1 -> 199 | GT32: =GS32+1 -> 200 | GU32: =GT32+1 -> 201 | GV32: =GU32+1 -> 202 | GW32: =GV32+1 -> 203 | GX32: =GW32+1 -> 204 | GY32: =GX32+1 -> 205 | GZ32: =GY32+1 -> 206 | HA32: =GZ32+1 -> 207 | HB32: =HA32+1 -> 208 | HC32: =HB32+1 -> 209 | HD32: =HC32+1 -> 210 | HE32: =HD32+1 -> 211 | HF32: =HE32+1 -> 212 | HG32: =HF32+1 -> 213 | HH32: =HG32+1 -> 214 | HI32: =HH32+1 -> 215 | HJ32: =HI32+1 -> 216 | HK32: =HJ32+1 -> 217 | HL32: =HK32+1 -> 218 | HM32: =HL32+1 -> 219 | HN32: =HM32+1 -> 220 | HO32: =HN32+1 -> 221 | HP32: =HO32+1 -> 222 | HQ32: =HP32+1 -> 223
B33: 1 | HS33: Enemies | HT33: Y/N | HU33: Left Tile | HV33: Right Tile
B34: 2 | HS34: 1 | HT34: Y | HU34: W13 | HV34: AD13
B35: 3 | HS35: 2 | HT35: Y | HU35: AQ13 | HV35: AV13
B36: 4 | HS36: 3 | HT36: Y | HU36: AY13 | HV36: BH13
B37: 5 | HS37: 4 | HT37: Y | HU37: BV13 | HV37: CJ13
B38: 6 | HS38: 5 | HT38: Y | HU38: CE7 | HV38: CL7
B39: 7 | HS39: 6 | HT39: Y | HU39: CN13 | HV39: CZ13
B40: 8 | HS40: 7 | HT40: Y | HU40: DJ13 | HV40: DQ13
B41: 9 | HS41: 8 | HT41: Y | HU41: DT13 | HV41: EE13
B42: 10 | HS42: 9 | HT42: Y | HU42: FK13 | HV42: FX13
B43: 11 | HS43: 10 | HT43: N
B44: 12
B45: 13
